bitfinex/quotes_BTCUSD_20250917
["timestamp","ask_amount","ask_price","bid_price","bid_amount"]
[1758074010609,1.09690321,116740.0,116730.0,0.00014103]
[1758074011479,1.10190321,116740.0,116730.0,0.00014103]
[1758074012464,0.79448564,116740.0,116730.0,0.00014103]
[1758074012661,1.44190321,116740.0,116730.0,0.00014103]
[1758074013440,1.44184389,116740.0,116730.0,0.00014103]
[1758074013666,1.17500389,116740.0,116730.0,0.00014103]
[1758074013900,1.44188389,116740.0,116730.0,0.00014103]
[1758074018078,1.42589236,116740.0,116730.0,0.00014103]
[1758074018318,1.44187807,116740.0,116730.0,0.00014103]
[1758074020500,1.44186805,116740.0,116730.0,0.00014103]
[1758074021337,1.44186819,116740.0,116730.0,0.00014103]
[1758074023305,1.17498819,116740.0,116730.0,0.00014103]
[1758074023494,1.44190819,116740.0,116730.0,0.00014103]
[1758074026759,1.44191864,116740.0,116730.0,0.00014103]
[1758074026974,1.10761418,116740.0,116730.0,0.00014103]
[1758074027197,1.41503175,116740.0,116730.0,0.00014103]
[1758074027430,1.41503541,116740.0,116730.0,0.00014103]
[1758074029788,1.45373989,116740.0,116730.0,0.00014103]
[1758074030007,1.46462682,116740.0,116730.0,0.00014103]
[1758074030466,1.48065257,116740.0,116730.0,0.00014103]
[1758074030689,1.45863213,116740.0,116730.0,0.00014103]
[1758074030892,1.48065257,116740.0,116730.0,0.00014103]
[1758074031334,1.45863213,116740.0,116730.0,0.00014103]
[1758074031790,1.54091213,116740.0,116730.0,0.00014103]
[1758074033269,1.56295375,116740.0,116730.0,0.00014103]
[1758074035850,1.56298684,116740.0,116730.0,0.00014103]
[1758074036194,1.21686479,116740.0,116730.0,0.00014103]
[1758074036662,1.56298684,116740.0,116730.0,0.00014103]
[1758074040593,1.07278144,116740.0,116730.0,0.00230103]
[1758074040779,1.04392455,116740.0,116730.0,0.00526103]
[1758074041276,1.06943455,116740.0,116730.0,0.00526103]
[1758074041893,1.06943455,116740.0,116730.0,0.00230103]
[1758074042525,1.4155566,116740.0,116730.0,0.00230103]
[1758074042735,1.4185666,116740.0,116730.0,0.00014103]
[1758074042947,1.44545349,116740.0,116730.0,0.00014103]
[1758074043164,1.44546528,116740.0,116730.0,0.00014103]
[1758074043385,1.53196673,116740.0,116730.0,0.00014103]
[1758074045067,0.51135023,116720.0,116710.0,0.5416969]
[1758074045260,0.80031673,116720.0,116710.0,0.5438569]
[1758074046452,0.80835673,116720.0,116710.0,0.00216]
[1758074046663,0.83183673,116720.0,116710.0,0.00216]
[1758074046868,0.83183673,116720.0,116710.0,0.52260697]
[1758074046869,0.80331673,116720.0,116710.0,0.52260697]
[1758074047075,0.83108438,116720.0,116710.0,0.17648492]
[1758074047287,0.85656438,116720.0,116710.0,0.35124205]
[1758074049040,0.83105438,116720.0,116710.0,0.52260697]
[1758074049258,0.83105397,116720.0,116710.0,0.54534697]
[1758074050796,0.83105438,116720.0,116710.0,0.54534697]
[1758074051808,0.65970415,116720.0,116710.0,0.54534697]
[1758074052901,0.43395303,116720.0,116710.0,0.54534697]
[1758074053098,0.70083303,116720.0,116710.0,0.54534697]
[1758074053743,0.87218326,116720.0,116710.0,0.54534697]
[1758074055394,0.43395303,116720.0,116710.0,0.54534697]
[1758074055644,0.09395303,116720.0,116710.0,0.81222697]
[1758074055904,0.04612888,116720.0,116710.0,0.81222697]
[1758074056926,0.04612888,116720.0,116710.0,0.54534697]
[1758074057188,0.04612888,116720.0,116710.0,0.81222697]
[1758074057646,0.04612888,116720.0,116710.0,0.8106047]
[1758074068236,0.04612888,116720.0,116710.0,0.5437247]
[1758074068480,0.04612888,116720.0,116710.0,0.8106047]
[1758074071345,0.04612888,116720.0,116710.0,0.8105647]
[1758074072030,0.04612888,116720.0,116710.0,0.5437247]
[1758074072259,0.04612888,116720.0,116710.0,0.8105647]
[1758074075859,0.04612888,116720.0,116710.0,0.5437247]
[1758074076087,0.04612888,116720.0,116710.0,0.8105647]
[1758074084786,0.04612888,116720.0,116710.0,0.5437247]
[1758074084956,0.04612888,116720.0,116710.0,0.8105647]
[1758074086463,0.04612888,116720.0,116710.0,0.5437247]
[1758074086672,0.04612888,116720.0,116710.0,0.8105647]
[1758074091910,0.04612888,116720.0,116710.0,0.77204468]
[1758074094107,0.04612888,116720.0,116710.0,0.19760265]
[1758074094310,0.04612888,116720.0,116710.0,0.77200468]
[1758074095460,0.04612888,116720.0,116710.0,0.50520468]
[1758074095678,0.04612888,116720.0,116710.0,0.77200468]
[1758074096404,0.04612888,116720.0,116710.0,0.50520468]
[1758074096623,0.04612888,116720.0,116710.0,0.77200468]
[1758074105306,0.04612888,116720.0,116710.0,0.50520468]
[1758074105508,0.04612888,116720.0,116710.0,0.77200468]
[1758074110742,0.04612888,116720.0,116710.0,0.50520468]
[1758074110970,0.04612888,116720.0,116710.0,0.77200468]
[1758074111488,0.04612888,116720.0,116710.0,0.50520468]
[1758074111709,0.04612888,116720.0,116710.0,0.77401468]
[1758074113012,0.04612888,116720.0,116710.0,0.74926468]
[1758074113253,0.04612888,116720.0,116710.0,0.77401468]
[1758074118421,0.04612888,116720.0,116710.0,0.79974928]
[1758074123895,0.04612888,116720.0,116710.0,0.50523928]
[1758074124112,0.04612888,116720.0,116710.0,0.79984928]
[1758074131027,0.04612888,116720.0,116710.0,0.53304928]
[1758074131225,0.04612888,116720.0,116710.0,0.79980928]
[1758074132274,0.04612888,116720.0,116710.0,0.53304928]
[1758074132485,0.04612888,116720.0,116710.0,0.79980928]
[1758074132701,0.05137888,116720.0,116710.0,0.46439725]
[1758074132925,0.07410888,116720.0,116710.0,0.43812492]
[1758074133141,0.07089888,116720.0,116710.0,0.44016492]
[1758074134300,0.04612888,116720.0,116710.0,0.75096695]
[1758074134518,0.04612888,116720.0,116710.0,0.77501695]
[1758074137122,0.04612888,116720.0,116710.0,0.80075156]
[1758074138906,0.005,116720.0,116710.0,1.19485504]
[1758074139265,0.005,116720.0,116710.0,0.88725301]
[1758074139675,0.005,116720.0,116710.0,1.19485504]
[1758074140142,0.005,116720.0,116710.0,1.28725301]
[1758074142456,0.005,116720.0,116710.0,0.71289098]
[1758074142667,0.005,116720.0,116710.0,1.28725301]
[1758074143018,0.005,116720.0,116710.0,0.88725301]
[1758074143589,0.005,116720.0,116710.0,1.28725301]
[1758074144683,0.005,116720.0,116710.0,0.97965098]
[1758074144866,0.005,116720.0,116710.0,1.28725301]
[1758074145801,0.005,116720.0,116710.0,0.88725301]
[1758074150729,0.005,116720.0,116710.0,0.80075156]
[1758074151083,0.005,116720.0,116710.0,0.88725301]
[1758074151723,0.005,116720.0,116710.0,0.92563134]
[1758074153880,0.005,116720.0,116710.0,0.57965098]
[1758074154092,0.005,116720.0,116710.0,0.92563134]
[1758074155613,0.005,116720.0,116710.0,1.26563134]
[1758074157038,0.005,116720.0,116710.0,0.99887134]
[1758074157402,0.005,116720.0,116710.0,1.66571134]
[1758074158480,0.005,116720.0,116710.0,1.39887134]
[1758074158681,0.005,116720.0,116710.0,1.66567134]
[1758074160629,0.04063761,116740.0,116730.0,0.17133556]
[1758074160932,0.04063761,116740.0,116730.0,0.81214592]
[1758074161289,0.04063761,116740.0,116730.0,0.83787539]
[1758074161942,0.04363761,116740.0,116730.0,0.83787539]
[1758074162317,0.04863761,116740.0,116730.0,0.83787539]
[1758074163238,0.04863761,116740.0,116730.0,0.92015539]
[1758074168989,0.04863761,116740.0,116730.0,0.92869614]
[1758074178039,0.04863761,116740.0,116730.0,0.90296667]
[1758074179760,0.008,116740.0,116730.0,1.67544848]
[1758074180414,0.008,116740.0,116730.0,1.70117565]
[1758074182043,0.008,116740.0,116730.0,1.70127565]
[1758074184859,0.008,116740.0,116730.0,1.76456211]
[1758074191132,0.008,116740.0,116730.0,2.16456211]
[1758074193038,0.008,116740.0,116730.0,1.89776211]
[1758074193259,0.008,116740.0,116730.0,2.16444211]
[1758074201210,0.008,116740.0,116730.0,2.16440211]
[1758074203389,0.008,116740.0,116730.0,1.89776211]
[1758074203597,0.008,116740.0,116730.0,2.16440211]
[1758074211933,0.008,116740.0,116730.0,1.77986612]
[1758074212326,0.008,116740.0,116730.0,1.51322612]
[1758074212551,0.008,116740.0,116730.0,1.77986612]
[1758074212997,0.008,116740.0,116730.0,1.78158612]
[1758074213445,0.008,116740.0,116730.0,1.51494612]
[1758074214108,0.008,116740.0,116730.0,1.78158612]
[1758074214541,0.008,116740.0,116730.0,1.51494612]
[1758074214762,0.008,116740.0,116730.0,1.78158612]
[1758074230201,0.008,116740.0,116730.0,1.78154612]
[1758074234109,0.008,116740.0,116730.0,1.47412139]
[1758074234309,0.008,116740.0,116730.0,1.78154612]
[1758074237822,0.008,116740.0,116730.0,1.47412139]
[1758074238034,0.008,116740.0,116730.0,1.78154612]
[1758074239094,0.008,116740.0,116730.0,1.51494612]
[1758074239297,0.008,116740.0,116730.0,1.78154612]
[1758074239926,0.008,116740.0,116730.0,1.51494612]
[1758074240148,0.008,116740.0,116730.0,1.78154612]
[1758074241094,0.008,116740.0,116730.0,1.47412139]
[1758074241274,0.008,116740.0,116730.0,1.78154612]
[1758074241711,0.008,116740.0,116730.0,1.47412139]
[1758074241924,0.008,116740.0,116730.0,1.78154612]
[1758074242351,0.008,116740.0,116730.0,1.47412139]
[1758074242590,0.008,116740.0,116730.0,1.78154612]
[1758074266409,0.008,116740.0,116730.0,2.11062612]
[1758074267215,0.008,116740.0,116730.0,1.80320139]
[1758074267554,0.008,116740.0,116730.0,2.11062612]
[1758074268172,0.008,116740.0,116730.0,1.84402612]
[1758074268394,0.008,116740.0,116730.0,2.11062612]
[1758074269269,0.008,116740.0,116730.0,1.81950612]
[1758074269477,0.008,116740.0,116730.0,2.08610612]
[1758074272134,0.008,116740.0,116730.0,1.81950612]
[1758074272352,0.008,116740.0,116730.0,2.08610612]
[1758074273916,0.008,116740.0,116730.0,2.46521493]
[1758074274125,0.008,116740.0,116730.0,2.47012493]
[1758074274305,0.008,116740.0,116730.0,2.49310493]
[1758074275255,0.008,116740.0,116730.0,2.14722316]
[1758074275913,0.008,116740.0,116730.0,1.81814316]
[1758074277522,0.008,116740.0,116730.0,1.81841316]
[1758074295799,0.008,116740.0,116730.0,1.20593139]
[1758074296045,0.008,116740.0,116730.0,1.81837316]
[1758074298964,0.008,116740.0,116730.0,0.78295139]
[1758074299182,0.008,116740.0,116730.0,1.39539316]
[1758074299393,0.008,116740.0,116730.0,1.81927316]
[1758074300368,0.008,116740.0,116730.0,1.47339139]
[1758074300597,0.008,116740.0,116730.0,1.81927316]
[1758074309551,0.008,116740.0,116730.0,2.14835316]
[1758074317841,0.008,116740.0,116730.0,1.88179316]
[1758074318053,0.008,116740.0,116730.0,2.14831316]
[1758074324144,0.008,116740.0,116730.0,2.49419493]
[1758074327934,0.008,116740.0,116730.0,2.14831316]
[1758074330228,0.008,116740.0,116730.0,2.49419493]
[1758074333302,0.008,116740.0,116730.0,2.14831316]
[1758074333970,0.008,116740.0,116730.0,2.10988319]
[1758074334525,0.008,116740.0,116730.0,1.80239139]
[1758074336001,0.01315,116740.0,116730.0,1.77542139]
[1758074336226,0.03616,116740.0,116730.0,1.77542139]
[1758074336671,0.03297,116740.0,116730.0,1.77542139]
[1758074339061,0.03297,116740.0,116730.0,1.77864139]
[1758074340203,0.008,116740.0,116730.0,1.77864139]
[1758074340564,0.008,116740.0,116730.0,1.80168139]
[1758074343190,0.03465,116740.0,116730.0,1.77542139]
[1758074343773,0.03761,116740.0,116730.0,1.77542139]
[1758074344132,0.03465,116740.0,116730.0,1.77542139]
[1758074344329,0.008,116740.0,116730.0,2.10913319]
[1758074345850,0.008,116740.0,116730.0,1.80168139]
[1758074346045,0.008,116740.0,116730.0,2.10913319]
[1758074352730,0.008,116740.0,116730.0,1.84265319]
[1758074352936,0.008,116740.0,116730.0,2.10913319]
[1758074354194,0.008,116740.0,116730.0,1.84265319]
[1758074354430,0.008,116740.0,116730.0,2.10913319]
[1758074371812,0.008,116740.0,116730.0,1.80168139]
[1758074372027,0.008,116740.0,116730.0,2.10913319]
[1758074374126,0.008,116740.0,116730.0,2.10909319]
[1758074377597,0.01004,116740.0,116730.0,2.10587319]
[1758074377736,0.03265,116740.0,116730.0,2.08283319]
[1758074378153,0.008,116740.0,116730.0,2.11040319]
[1758074378758,0.03061,116740.0,116730.0,2.08283319]
[1758074378963,0.008,116740.0,116730.0,2.11040319]
[1758074380381,0.008,116740.0,116730.0,1.78132319]
[1758074386437,0.008,116740.0,116730.0,1.81147509]
[1758074387508,0.005,116740.0,116730.0,1.81147509]
[1758074387725,0.007,116740.0,116730.0,1.81147509]
[1758074388834,0.002,116740.0,116730.0,1.81147509]
[1758074389032,0.004,116740.0,116730.0,1.81147509]
[1758074395937,0.004,116740.0,116730.0,2.19567779]
[1758074399422,0.004,116740.0,116730.0,2.19563779]
[1758074403006,0.004,116740.0,116730.0,1.92923779]
[1758074403225,0.004,116740.0,116730.0,1.58341054]
[1758074403443,0.004,116740.0,116730.0,1.84981054]
[1758074403683,0.00603,116740.0,116730.0,1.82224054]
[1758074403901,0.00905,116740.0,116730.0,1.47432329]
[1758074404127,0.03256,116740.0,116730.0,1.82015054]
[1758074410532,0.03256,116740.0,116730.0,1.55375054]
[1758074410742,0.03256,116740.0,116730.0,1.82011054]
[1758074410934,0.02954,116740.0,116730.0,1.82227054]
[1758074411184,0.02751,116740.0,116730.0,1.82527054]
[1758074411434,0.004,116740.0,116730.0,1.82527054]
[1758074411682,0.004,116740.0,116730.0,2.19456779]
[1758074412593,0.004,116740.0,116730.0,1.84874054]
[1758074414480,0.004,116740.0,116730.0,2.19456779]
[1758074415270,0.004,116740.0,116730.0,1.84874054]
[1758074417261,0.004,116740.0,116730.0,1.58238054]
[1758074417492,0.004,116740.0,116730.0,1.84874054]
[1758074420460,0.004,116740.0,116730.0,2.19456779]
[1758074421866,0.004,116740.0,116730.0,1.50291329]
[1758074422023,0.004,116740.0,116730.0,2.19456779]
[1758074422860,0.004,116740.0,116730.0,1.50291329]
[1758074423068,0.004,116740.0,116730.0,1.84874054]
[1758074423681,0.004,116740.0,116730.0,2.17782054]
[1758074424056,0.004,116740.0,116730.0,1.91146054]
[1758074424274,0.004,116740.0,116730.0,2.17782054]
[1758074425157,0.004,116740.0,116730.0,1.91146054]
[1758074425377,0.004,116740.0,116730.0,2.17782054]
[1758074426988,0.004,116740.0,116730.0,2.14766864]
[1758074427633,0.004,116740.0,116730.0,1.91146054]
[1758074428105,0.004,116740.0,116730.0,2.17782054]
[1758074432886,0.004,116740.0,116730.0,1.83199329]
[1758074433106,0.004,116740.0,116730.0,2.17782054]
[1758074433302,0.004,116740.0,116730.0,1.56563329]
[1758074433578,0.03281,116740.0,116730.0,2.14919054]
[1758074434050,0.03276717,116740.0,116730.0,1.80546329]
[1758074434245,0.03276717,116740.0,116730.0,2.15129054]
[1758074434675,0.03276717,116740.0,116730.0,1.77329139]
[1758074435309,0.03276717,116740.0,116730.0,2.12117864]
[1758074435469,0.03276717,116740.0,116730.0,1.77535139]
[1758074435873,0.03276717,116740.0,116730.0,1.77329139]
[1758074439569,0.03276717,116740.0,116730.0,2.11911864]
[1758074440499,0.03276717,116740.0,116730.0,2.12117864]
[1758074441762,0.03276717,116740.0,116730.0,1.85473864]
[1758074441964,0.03276717,116740.0,116730.0,2.12121864]
[1758074442164,0.03276717,116740.0,116730.0,2.11915864]
[1758074442784,0.02959717,116740.0,116730.0,2.12121864]
[1758074442999,0.02959717,116740.0,116730.0,1.77539139]
[1758074443418,0.02959717,116740.0,116730.0,2.12121864]
[1758074446200,0.02959717,116740.0,116730.0,1.77539139]
[1758074446400,0.02959717,116740.0,116730.0,2.12121864]
[1758074447234,0.03276717,116740.0,116730.0,2.11915864]
[1758074447555,0.00594717,116740.0,116730.0,2.12121864]
[1758074448765,0.02959717,116740.0,116730.0,2.12121864]
[1758074449252,0.02959717,116740.0,116730.0,1.50891139]
[1758074449461,0.02959717,116740.0,116730.0,2.12121864]
[1758074449838,0.02959717,116740.0,116730.0,1.85473864]
[1758074450041,0.00594717,116740.0,116730.0,2.12133864]
[1758074450257,0.02959717,116740.0,116730.0,2.12133864]
[1758074455151,0.00594717,116740.0,116730.0,2.12133864]
[1758074455356,0.00594717,116740.0,116730.0,2.14830864]
[1758074455598,0.00395717,116740.0,116730.0,2.14830864]
[1758074455796,0.00395717,116740.0,116730.0,2.10996748]
[1758074456916,0.03397717,116740.0,116730.0,1.77345139]
[1758074457120,0.03397717,116740.0,116730.0,1.44437139]
[1758074457552,0.03397717,116740.0,116730.0,1.44635139]
[1758074457800,0.03092717,116740.0,116730.0,1.44635139]
[1758074460196,0.03092717,116740.0,116730.0,0.82923064]
[1758074460197,0.03236717,116740.0,116730.0,0.82923064]
[1758074460409,0.03236717,116740.0,116730.0,0.27944273]
[1758074460410,0.38049087,116740.0,116730.0,0.27944273]
[1758074460613,0.38049087,116740.0,116730.0,0.52019556]
[1758074462741,0.38049087,116740.0,116730.0,0.52027556]
[1758074463173,0.38049087,116740.0,116730.0,0.25371556]
[1758074463376,0.55181175,116740.0,116730.0,0.52027556]
[1758074463756,0.60469113,116740.0,116730.0,0.52027556]
[1758074465007,0.60469113,116740.0,116730.0,0.52017556]
[1758074466771,0.60469113,116740.0,116730.0,0.43789556]
[1758074467189,0.61338559,116740.0,116730.0,0.43789556]
[1758074467436,0.61338559,116740.0,116730.0,0.43821556]
[1758074467646,0.61338559,116740.0,116730.0,0.26688]
[1758074468295,0.61338559,116740.0,116720.0,0.5005176]
[1758074468501,0.58708559,116740.0,116730.0,0.26688]
[1758074468916,0.58708559,116740.0,116730.0,0.43821556]
[1758074469359,0.61338559,116740.0,116730.0,0.43821556]
[1758074470887,0.61142842,116740.0,116730.0,0.43821556]
[1758074471274,0.61342842,116740.0,116730.0,0.43821556]
[1758074471561,0.61342842,116740.0,116730.0,0.17133556]
[1758074471762,0.61142842,116740.0,116730.0,0.43817556]
[1758074472019,0.61342842,116740.0,116730.0,0.43817556]
[1758074474609,0.30594233,116740.0,116730.0,0.43817556]
[1758074474816,0.58627967,116740.0,116730.0,0.43817556]
[1758074475906,0.58627967,116740.0,116730.0,0.26684]
[1758074478626,0.56054904,116740.0,116730.0,0.26684]
[1758074480021,0.25306295,116740.0,116730.0,0.43817556]
[1758074480236,0.56054904,116740.0,116730.0,0.43817556]
[1758074486676,0.07304761,116740.0,116730.0,0.43817556]
[1758074486903,0.40194881,116740.0,116730.0,0.43817556]
[1758074487125,0.3805337,116740.0,116730.0,0.43817556]
[1758074487454,0.07304761,116740.0,116730.0,0.43817556]
[1758074487904,0.09446272,116740.0,116730.0,0.43817556]
[1758074488864,0.09446272,116740.0,116730.0,0.17133556]
[1758074489117,0.09446272,116740.0,116730.0,0.43849556]
[1758074489292,0.09446272,116740.0,116730.0,0.43845556]
[1758074489699,0.07304761,116740.0,116730.0,0.43845556]
[1758074491127,0.09446272,116740.0,116730.0,0.43845556]
[1758074491921,0.40194881,116740.0,116730.0,0.43845556]
[1758074492098,0.3805337,116740.0,116730.0,0.43845556]
[1758074492871,0.07304761,116740.0,116730.0,0.43845556]
[1758074493084,0.17133556,116730.0,116720.0,0.0001]
[1758074493284,1.30308425,116730.0,116720.0,0.0001]
[1758074493502,1.33289485,116730.0,116720.0,0.0001]
[1758074493701,1.02540876,116730.0,116720.0,0.0001]
[1758074494103,1.05114776,116730.0,116720.0,0.0001]
[1758074494334,1.13764921,116730.0,116720.0,0.0001]
[1758074494764,1.14164921,116730.0,116720.0,0.0001]
[1758074494926,1.4471353,116730.0,116720.0,0.0001]
[1758074495331,1.4491353,116730.0,116720.0,0.0001]
[1758074496092,0.17136492,116710.0,116700.0,0.01288]
[1758074496260,0.55055967,116710.0,116700.0,0.004]
[1758074496461,0.59893667,116710.0,116700.0,0.004]
[1758074496668,0.93893667,116710.0,116700.0,0.004]
[1758074496871,1.02543812,116710.0,116700.0,0.004]
[1758074497497,1.05117944,116710.0,116700.0,0.004]
[1758074497664,1.05117944,116710.0,116700.0,0.005]
[1758074497866,1.05117944,116710.0,116700.0,0.007]
[1758074498725,1.03513032,116710.0,116700.0,0.007]
[1758074498928,1.05113897,116710.0,116700.0,0.007]
[1758074500502,1.13764042,116710.0,116700.0,0.007]
[1758074500902,1.13763324,116710.0,116700.0,0.007]
[1758074501384,1.13761537,116710.0,116700.0,0.007]
[1758074501746,1.05111392,116710.0,116700.0,0.007]
[1758074502365,1.31859392,116710.0,116700.0,0.007]
[1758074503961,1.31855392,116710.0,116700.0,0.007]
[1758074506287,1.31855392,116710.0,116700.0,0.00689611]
[1758074508317,1.0291119,116710.0,116700.0,0.00689611]
[1758074508565,1.2965119,116710.0,116700.0,0.00689611]
[1758074508819,1.0291119,116710.0,116700.0,0.00689611]
[1758074509241,1.31844869,116710.0,116700.0,0.00689611]
[1758074509411,1.05108869,116710.0,116700.0,0.00689611]
[1758074509792,1.29022818,116710.0,116700.0,0.00689611]
[1758074510760,1.02286818,116710.0,116700.0,0.00689611]
[1758074511150,1.29018818,116710.0,116700.0,0.00689611]
[1758074511559,1.02286818,116710.0,116700.0,0.00689611]
[1758074511697,1.29018818,116710.0,116700.0,0.00689611]
[1758074514835,0.0646744,116710.0,116700.0,0.18042571]
[1758074515042,0.11027501,116710.0,116700.0,0.18042571]
[1758074515247,0.11341501,116710.0,116700.0,0.18042571]
[1758074515423,0.1134145,116710.0,116700.0,0.18042571]
[1758074515828,0.28477942,116710.0,116700.0,0.18042571]
[1758074516165,0.28477942,116710.0,116700.0,0.17827571]
[1758074516166,0.26335881,116710.0,116700.0,0.17827571]
[1758074518888,0.09199389,116710.0,116700.0,0.17827571]
[1758074519092,0.11343068,116710.0,116700.0,0.17827571]
[1758074520891,0.11343068,116710.0,116700.0,0.52644254]
[1758074521735,0.08611068,116710.0,116700.0,0.52644254]
[1758074521946,0.06263007,116710.0,116700.0,0.52942254]
[1758074522180,0.06263007,116710.0,116700.0,0.55402254]
[1758074522606,0.06263007,116710.0,116700.0,0.82130254]
[1758074522825,0.06267792,116710.0,116700.0,0.82130254]
[1758074523567,0.06268376,116710.0,116700.0,0.82130254]
[1758074524892,0.06268376,116710.0,116700.0,1.33627082]
[1758074524893,0.02204615,116710.0,116700.0,1.33627082]
[1758074525380,0.04063761,116720.0,116710.0,0.17136492]
[1758074525570,0.06267434,116720.0,116710.0,0.51755175]
[1758074525790,0.06267434,116720.0,116710.0,0.78693175]
[1758074526336,0.06267434,116720.0,116710.0,0.81451175]
[1758074526577,0.06367434,116720.0,116710.0,0.54711175]
[1758074526809,0.06367434,116720.0,116710.0,0.81447175]
[1758074527060,0.06367434,116720.0,116710.0,0.54711175]
[1758074527275,0.04764744,116720.0,116710.0,0.54711175]
[1758074527523,0.07703744,116720.0,116710.0,0.17136492]
[1758074527752,0.43925117,116720.0,116710.0,0.17136492]
[1758074527977,0.09306083,116720.0,116710.0,0.43880492]
[1758074528609,0.26441106,116720.0,116710.0,0.43880492]
[1758074528795,0.09306083,116720.0,116710.0,0.43880492]
[1758074529014,0.1144796,116720.0,116710.0,0.43880492]
[1758074529215,0.1144796,116720.0,116710.0,0.17136492]
[1758074529448,0.30907044,116720.0,116710.0,0.43880492]
[1758074529649,0.28765167,116720.0,116710.0,0.43880492]
[1758074529864,0.28765167,116720.0,116710.0,0.43980492]
[1758074530072,0.26341106,116720.0,116710.0,0.43980492]
[1758074531638,0.26341106,116720.0,116710.0,0.17236492]
[1758074531836,0.6338385,116720.0,116710.0,0.43980492]
[1758074532397,0.26339489,116720.0,116710.0,0.43980492]
[1758074534055,0.60958172,116720.0,116710.0,0.001]
[1758074534297,0.63382233,116720.0,116710.0,0.001]
[1758074534500,0.63382233,116720.0,116710.0,0.26844]
[1758074536789,0.63382233,116720.0,116710.0,0.001]
[1758074537009,1.05865278,116720.0,116710.0,0.001]
[1758074537423,1.08439207,116720.0,116710.0,0.001]
[1758074538509,0.73820524,116720.0,116710.0,0.001]
[1758074538726,1.05865278,116720.0,116710.0,0.001]
[1758074540531,1.14515423,116720.0,116710.0,0.001]
[1758074540916,1.05865278,116720.0,116710.0,0.001]
[1758074541524,1.32605278,116720.0,116710.0,0.001]
[1758074542328,1.30348317,116720.0,116710.0,0.001]
[1758074547862,1.32741079,116720.0,116710.0,0.001]
[1758074548062,1.35315116,116720.0,116710.0,0.001]
[1758074548438,1.43965261,116720.0,116710.0,0.001]
[1758074551575,1.35315116,116720.0,116710.0,0.001]
[1758074553021,0.55200253,116710.0,116700.0,0.00389611]
[1758074553218,1.00978786,116710.0,116700.0,0.00389611]
[1758074553452,1.03663862,116710.0,116700.0,0.00389611]
[1758074553914,1.06238064,116710.0,116700.0,0.00389611]
[1758074554116,0.71619381,116710.0,116700.0,0.00389611]
[1758074554284,1.06238064,116710.0,116700.0,0.00389611]
[1758074554663,1.06238064,116710.0,116700.0,0.00489611]
[1758074554864,1.11263067,116710.0,116700.0,0.00489611]
[1758074556008,1.11263584,116710.0,116700.0,0.00489611]
[1758074558010,1.13656346,116710.0,116700.0,0.00489611]
[1758074559747,1.08631343,116710.0,116700.0,0.00489611]
[1758074560326,1.35351343,116710.0,116700.0,0.00489611]
[1758074565182,1.08631343,116710.0,116700.0,0.00489611]
[1758074565442,1.35339343,116710.0,116700.0,0.00489611]
[1758074568063,1.0072066,116710.0,116700.0,0.00489611]
[1758074568240,1.35339343,116710.0,116700.0,0.00489611]
[1758074568444,1.35340184,116710.0,116700.0,0.00489611]
[1758074571070,1.08632184,116710.0,116700.0,0.00489611]
[1758074571323,1.35348184,116710.0,116700.0,0.00489611]
[1758074572549,1.08632184,116710.0,116700.0,0.00489611]
[1758074572722,1.35348184,116710.0,116700.0,0.00489611]
[1758074573965,1.74431885,116710.0,116700.0,0.00489611]
[1758074574167,1.73829895,116710.0,116700.0,0.00489611]
[1758074574419,1.74432027,116710.0,116700.0,0.00489611]
[1758074576230,1.74532027,116710.0,116700.0,0.00489611]
[1758074576697,1.73829895,116710.0,116700.0,0.00489611]
[1758074576868,1.74432077,116710.0,116700.0,0.00489611]
[1758074577206,1.74532077,116710.0,116700.0,0.00389611]
[1758074577416,1.05290711,116710.0,116700.0,0.00389611]
[1758074577619,1.13197394,116710.0,116700.0,0.00389611]
[1758074577868,1.09363259,116710.0,116700.0,0.00389611]
[1758074578279,1.36083259,116710.0,116700.0,0.00389611]
[1758074579907,1.09363259,116710.0,116700.0,0.00389611]
[1758074580113,1.36079259,116710.0,116700.0,0.00389611]
[1758074581355,1.36079346,116710.0,116700.0,0.00389611]
[1758074583274,1.09363346,116710.0,116700.0,0.00389611]
[1758074583483,1.36075346,116710.0,116700.0,0.00389611]
[1758074586294,0.9842904,116710.0,116700.0,0.00389611]
[1758074586518,0.7172104,116710.0,116700.0,0.00389611]
[1758074586651,1.29237566,116710.0,116700.0,0.00389611]
[1758074587099,1.29240327,116710.0,116700.0,0.00389611]
[1758074591273,1.31633089,116710.0,116700.0,0.00389611]
[1758074591494,1.40283234,116710.0,116700.0,0.00389611]
[1758074592947,1.39681309,116710.0,116700.0,0.00389611]
[1758074593146,1.40283662,116710.0,116700.0,0.00389611]
[1758074593494,1.38677392,116710.0,116700.0,0.00389611]
[1758074593700,1.39681324,116710.0,116700.0,0.00389611]
[1758074594447,1.4028368,116710.0,116700.0,0.00389611]
[1758074594654,1.40283688,116710.0,116700.0,0.00389611]
[1758074596090,1.09499162,116710.0,116700.0,0.00389611]
[1758074596361,1.40283688,116710.0,116700.0,0.00389611]
[1758074603163,1.40311688,116710.0,116700.0,0.00389611]
[1758074603362,1.31661543,116710.0,116700.0,0.00604611]
[1758074604123,1.04901543,116710.0,116700.0,0.00604611]
[1758074604339,0.37126017,116710.0,116700.0,0.00910611]
[1758074604547,0.61497255,116710.0,116700.0,0.03390611]
[1758074604799,0.95497255,116710.0,116700.0,0.03390611]
[1758074606016,0.68733255,116710.0,116700.0,0.20528571]
[1758074606182,0.68733255,116710.0,116700.0,0.00604611]
[1758074606183,0.95710255,116710.0,116700.0,0.00604611]
[1758074606388,0.98188255,116710.0,116700.0,0.00604611]
[1758074608460,0.71424255,116710.0,116700.0,0.17742571]
[1758074608685,0.95706255,116710.0,116700.0,0.17742571]
[1758074608855,0.95706255,116710.0,116700.0,0.20436571]
[1758074609064,0.95493255,116710.0,116700.0,0.20436571]
[1758074611725,0.95692255,116710.0,116700.0,0.17742571]
[1758074613498,0.98492255,116710.0,116700.0,0.00604611]
[1758074613642,1.29276781,116710.0,116700.0,0.00604611]
[1758074615336,1.29275156,116710.0,116700.0,0.00604611]
[1758074615768,0.9849063,116710.0,116700.0,0.00604611]
[1758074618436,0.9818463,116710.0,116700.0,0.00604611]
[1758074618619,0.9849063,116710.0,116700.0,0.00389611]
[1758074618853,0.9849063,116710.0,116700.0,0.00605611]
[1758074619042,0.9818463,116710.0,116700.0,0.00605611]
[1758074619273,0.7142463,116710.0,116700.0,0.17743571]
[1758074619515,0.42944993,116710.0,116700.0,0.20437571]
[1758074619734,0.42944993,116710.0,116700.0,0.51222097]
[1758074619946,0.42944993,116710.0,116700.0,0.20437571]